[Event "*** Titled Tuesday Blitz"]
[Site "Chess.com"]
[Date "2020.04.14"]
[Round "5"]
[White "AnishGiri"]
[Black "Vincent_Vega95"]
[Result "1-0"]
[WhiteElo "3023"]
[BlackElo "2774"]
[TimeControl "180+1"]
[EndTime "10:50:57 PDT"]
[Termination "AnishGiri won by resignation"]

1. d4 {[%clk 0:03:00.5]} 1... Nf6 {[%clk 0:02:59.9]} 2. c4 {[%clk 0:03:01]} 2...
g6 {[%clk 0:03:00.2]} 3. Nc3 {[%clk 0:03:00.4]} 3... Bg7 {[%clk 0:03:00.8]} 4.
e4 {[%clk 0:03:01.1]} 4... d6 {[%clk 0:03:01.3]} 5. Nf3 {[%clk 0:03:01.7]} 5...
O-O {[%clk 0:03:02]} 6. Be2 {[%clk 0:03:02.3]} 6... Nbd7 {[%clk 0:03:01.5]} 7.
O-O {[%clk 0:03:02.4]} 7... e5 {[%clk 0:03:01.9]} 8. Be3 {[%clk 0:03:03.1]} 8...
Qe7 {[%clk 0:03:01.5]} 9. Qc2 {[%clk 0:02:59.4]} 9... exd4 {[%clk 0:02:56.5]}
10. Nxd4 {[%clk 0:02:59]} 10... c6 {[%clk 0:02:53.2]} 11. Rae1 {[%clk
0:02:17.5]} 11... Nc5 {[%clk 0:02:44.4]} 12. Bf3 {[%clk 0:02:07.7]} 12... a5
{[%clk 0:02:39.8]} 13. b3 {[%clk 0:02:00.6]} 13... Re8 {[%clk 0:02:39.2]} 14.
Bf4 {[%clk 0:01:45.1]} 14... Nh5 {[%clk 0:02:22.3]} 15. Bxh5 {[%clk 0:01:41.9]}
15... Bxd4 {[%clk 0:02:21.8]} 16. Bf3 {[%clk 0:01:40]} 16... Qf6 {[%clk
0:02:12.5]} 17. Bd2 {[%clk 0:01:39.9]} 17... h5 {[%clk 0:02:10.9]} 18. Ne2
{[%clk 0:01:30.5]} 18... Be5 {[%clk 0:02:08.7]} 19. Be3 {[%clk 0:01:28.3]} 19...
h4 {[%clk 0:01:56.2]} 20. Qd2 {[%clk 0:01:27.1]} 20... Ne6 {[%clk 0:01:43.9]}
21. Bg4 {[%clk 0:01:24.1]} 21... Nc5 {[%clk 0:01:37.4]} 22. Bxc8 {[%clk
0:01:21]} 22... Nxe4 {[%clk 0:01:26.5]} 23. Qd3 {[%clk 0:00:59.3]} 23... Raxc8
{[%clk 0:01:26.3]} 24. f4 {[%clk 0:00:59.9]} 24... Bc3 {[%clk 0:01:21.6]} 25.
Nxc3 {[%clk 0:00:54.9]} 25... Qxc3 {[%clk 0:01:19]} 26. Qxc3 {[%clk 0:00:55.3]}
26... Nxc3 {[%clk 0:01:18.9]} 27. Bd2 {[%clk 0:00:55.6]} 27... Ne4 {[%clk
0:01:13.9]} 28. Bxa5 {[%clk 0:00:52.5]} 28... Ra8 {[%clk 0:01:14.1]} 29. b4
{[%clk 0:00:51.9]} 29... f5 {[%clk 0:01:07.9]} 30. Re2 {[%clk 0:00:46.6]} 30...
Nc3 {[%clk 0:01:03.6]} 31. Rd2 {[%clk 0:00:36.9]} 31... d5 {[%clk 0:01:00.4]}
32. cxd5 {[%clk 0:00:32.4]} 32... Nxd5 {[%clk 0:00:59.3]} 33. Rc1 {[%clk
0:00:28.1]} 33... Re3 {[%clk 0:00:35.8]} 34. Rc4 {[%clk 0:00:23]} 34... Re6
{[%clk 0:00:27.1]} 35. Rcd4 {[%clk 0:00:14.8]} 35... b6 {[%clk 0:00:25.9]} 36.
b5 {[%clk 0:00:15.3]} 36... bxa5 {[%clk 0:00:20.5]} 37. bxc6 {[%clk 0:00:15.7]}
37... Ne7 {[%clk 0:00:19.4]} 38. c7 {[%clk 0:00:14.6]} 38... Rc6 {[%clk
0:00:17.6]} 39. Rd8+ {[%clk 0:00:13.2]} 1-0

[Event "*** Titled Tuesday Blitz"]
[Site "Chess.com"]
[Date "2020.04.14"]
[Round "5"]
[White "vizumatv4hoda"]
[Black "Anton_Demchenko"]
[Result "1-0"]
[WhiteElo "2756"]
[BlackElo "2928"]
[TimeControl "180+1"]
[EndTime "10:50:57 PDT"]
[Termination "vizumatv4hoda won on time"]

1. e4 {[%clk 0:03:00.3]} 1... e5 {[%clk 0:02:59.8]} 2. d4 {[%clk 0:02:59.6]}
2... exd4 {[%clk 0:02:59.3]} 3. Nf3 {[%clk 0:02:59.9]} 3... Nc6 {[%clk
0:02:58.9]} 4. c3 {[%clk 0:02:59.9]} 4... d5 {[%clk 0:02:57.5]} 5. Bd3 {[%clk
0:03:00.5]} 5... dxe4 {[%clk 0:02:50.3]} 6. Bxe4 {[%clk 0:03:01.4]} 6... dxc3
{[%clk 0:02:38.5]} 7. Bxc6+ {[%clk 0:02:58.9]} 7... bxc6 {[%clk 0:02:38.3]} 8.
Qxd8+ {[%clk 0:02:59.8]} 8... Kxd8 {[%clk 0:02:38.5]} 9. Nxc3 {[%clk 0:02:59.7]}
9... Bd6 {[%clk 0:02:28.2]} 10. O-O {[%clk 0:02:56.6]} 10... Nf6 {[%clk
0:02:21.8]} 11. Nd4 {[%clk 0:02:56.1]} 11... Bd7 {[%clk 0:02:19.7]} 12. Bg5
{[%clk 0:02:55.9]} 12... Re8 {[%clk 0:02:11.7]} 13. Rac1 {[%clk 0:02:55.9]}
13... Kc8 {[%clk 0:02:00.9]} 14. Bxf6 {[%clk 0:02:56.3]} 14... gxf6 {[%clk
0:02:00.9]} 15. Na4 {[%clk 0:02:57.2]} 15... Rb8 {[%clk 0:01:33.8]} 16. Nxc6
{[%clk 0:02:55.2]} 16... Bxc6 {[%clk 0:01:33.9]} 17. Rxc6 {[%clk 0:02:56.1]}
17... Rb4 {[%clk 0:01:31]} 18. b3 {[%clk 0:02:56.5]} 18... Re2 {[%clk
0:01:29.1]} 19. Rfc1 {[%clk 0:02:55.5]} 19... Kd7 {[%clk 0:01:12.4]} 20. R6c2
{[%clk 0:02:55.3]} 20... Rxc2 {[%clk 0:00:57.6]} 21. Rxc2 {[%clk 0:02:56.2]}
21... Rd4 {[%clk 0:00:58]} 22. g3 {[%clk 0:02:52.3]} 22... f5 {[%clk 0:00:47.6]}
23. Kg2 {[%clk 0:02:52.2]} 23... f4 {[%clk 0:00:46.1]} 24. Nc5+ {[%clk
0:02:34.2]} 24... Ke7 {[%clk 0:00:35.2]} 25. Re2+ {[%clk 0:02:26.3]} 25... Kf8
{[%clk 0:00:35.5]} 26. Ne4 {[%clk 0:02:21.2]} 26... fxg3 {[%clk 0:00:32.4]} 27.
hxg3 {[%clk 0:02:22.1]} 27... Be7 {[%clk 0:00:29.3]} 28. Kf3 {[%clk 0:02:18.4]}
28... Rd3+ {[%clk 0:00:23.9]} 29. Kg4 {[%clk 0:02:17.3]} 29... Rd5 {[%clk
0:00:21.2]} 30. Kh3 {[%clk 0:02:14.7]} 30... a5 {[%clk 0:00:13.4]} 31. Rc2
{[%clk 0:02:14.6]} 31... Bd6 {[%clk 0:00:07.6]} 32. f4 {[%clk 0:02:06.7]} 32...
Kg7 {[%clk 0:00:07.4]} 33. Rd2 {[%clk 0:01:56.6]} 33... Rxd2 {[%clk 0:00:06.2]}
34. Nxd2 {[%clk 0:01:57.2]} 34... Kf6 {[%clk 0:00:06.6]} 35. Nc4 {[%clk
0:01:50.2]} 35... Bb4 {[%clk 0:00:06.8]} 36. Kg4 {[%clk 0:01:51.1]} 36... Be1
{[%clk 0:00:04.2]} 37. Kf3 {[%clk 0:01:51.1]} 37... h5 {[%clk 0:00:04.3]} 38.
Ne5 {[%clk 0:01:43.5]} 38... Ke6 {[%clk 0:00:03.2]} 39. Nd3 {[%clk 0:01:36.4]}
39... Bc3 {[%clk 0:00:03.3]} 40. Nf2 {[%clk 0:01:37.3]} 40... Kd5 {[%clk
0:00:03]} 41. Ne4 {[%clk 0:01:37.2]} 41... Be1 {[%clk 0:00:02.1]} 42. Ng5 {[%clk
0:01:37]} 42... f6 {[%clk 0:00:01.7]} 43. Ne4 {[%clk 0:01:36.9]} 43... f5 {[%clk
0:00:01.2]} 44. Nf6+ {[%clk 0:01:35.3]} 44... Kd4 {[%clk 0:00:01.2]} 45. Nxh5
{[%clk 0:01:36.2]} 45... Kc3 {[%clk 0:00:01.1]} 46. Ng7 {[%clk 0:01:13.6]} 46...
Kb2 {[%clk 0:00:01.2]} 47. Nxf5 {[%clk 0:01:14.5]} 47... Kxa2 {[%clk 0:00:01.6]}
48. Nd4 {[%clk 0:01:11.4]} 48... Bc3 {[%clk 0:00:01.4]} 49. Nb5 {[%clk
0:00:57.6]} 1-0

[Event "*** Titled Tuesday Blitz"]
[Site "Chess.com"]
[Date "2020.04.14"]
[Round "5"]
[White "djano"]
[Black "LionTheLeon_06"]
[Result "0-1"]
[WhiteElo "2489"]
[BlackElo "2670"]
[TimeControl "180+1"]
[EndTime "10:50:57 PDT"]
[Termination "LionTheLeon_06 won on time"]

1. Nf3 {[%clk 0:03:00.9]} 1... Nf6 {[%clk 0:02:59.8]} 2. g3 {[%clk 0:03:01.4]}
2... b6 {[%clk 0:02:59.6]} 3. Bg2 {[%clk 0:03:01.7]} 3... Bb7 {[%clk 0:03:00.3]}
4. O-O {[%clk 0:03:02.2]} 4... e6 {[%clk 0:03:00.8]} 5. c4 {[%clk 0:03:02.6]}
5... Be7 {[%clk 0:03:01.3]} 6. d4 {[%clk 0:03:02.4]} 6... O-O {[%clk 0:03:01.7]}
7. Nc3 {[%clk 0:03:02.8]} 7... Ne4 {[%clk 0:03:02]} 8. Qc2 {[%clk 0:02:59.2]}
8... Nxc3 {[%clk 0:03:01.7]} 9. bxc3 {[%clk 0:03:00.1]} 9... Nc6 {[%clk
0:02:58.2]} 10. Rd1 {[%clk 0:02:55.2]} 10... Na5 {[%clk 0:02:55.8]} 11. Nd2
{[%clk 0:02:40.7]} 11... Bxg2 {[%clk 0:02:53.7]} 12. Kxg2 {[%clk 0:02:41.6]}
12... c5 {[%clk 0:02:47.3]} 13. Qd3 {[%clk 0:02:26.4]} 13... Re8 {[%clk
0:02:43]} 14. Nb3 {[%clk 0:02:24]} 14... Nc6 {[%clk 0:02:30.2]} 15. e3 {[%clk
0:02:17]} 15... d6 {[%clk 0:02:21.4]} 16. a4 {[%clk 0:02:15.6]} 16... Qc7 {[%clk
0:02:20.8]} 17. Bb2 {[%clk 0:02:07]} 17... Rac8 {[%clk 0:02:13.9]} 18. Kg1
{[%clk 0:02:01.2]} 18... Bf6 {[%clk 0:02:08.8]} 19. Nd2 {[%clk 0:01:59.2]} 19...
Na5 {[%clk 0:02:07.4]} 20. d5 {[%clk 0:01:52.4]} 20... e5 {[%clk 0:02:01.6]} 21.
Rf1 {[%clk 0:01:39.3]} 21... g6 {[%clk 0:01:59.1]} 22. e4 {[%clk 0:01:31.5]}
22... Bg7 {[%clk 0:01:57.2]} 23. f4 {[%clk 0:01:23.3]} 23... exf4 {[%clk
0:01:56.3]} 24. gxf4 {[%clk 0:01:23.1]} 24... Qd7 {[%clk 0:01:56.4]} 25. f5
{[%clk 0:01:10.2]} 25... Qe7 {[%clk 0:01:43]} 26. Kh1 {[%clk 0:00:54.9]} 26...
Bh6 {[%clk 0:01:40.1]} 27. f6 {[%clk 0:00:40.6]} 27... Qe5 {[%clk 0:01:37.5]}
28. Rae1 {[%clk 0:00:36.3]} 28... Qh5 {[%clk 0:01:26.1]} 29. Nf3 {[%clk
0:00:34.3]} 29... Bf4 {[%clk 0:01:15.5]} 30. Bc1 {[%clk 0:00:31.9]} 30... Bxc1
{[%clk 0:01:02.6]} 31. Rxc1 {[%clk 0:00:27.2]} 31... h6 {[%clk 0:01:01]} 32.
Rce1 {[%clk 0:00:26.7]} 32... Kh7 {[%clk 0:01:00.4]} 33. e5 {[%clk 0:00:26.3]}
33... dxe5 {[%clk 0:00:56.8]} 34. d6 {[%clk 0:00:26.6]} 34... Rcd8 {[%clk
0:00:55.2]} 35. Qd5 {[%clk 0:00:25.7]} 35... Re6 {[%clk 0:00:54]} 36. Rxe5
{[%clk 0:00:23.5]} 36... Qh3 {[%clk 0:00:38.6]} 37. Rg1 {[%clk 0:00:13]} 37...
Rdxd6 {[%clk 0:00:38.1]} 38. Qe4 {[%clk 0:00:11.2]} 38... Rxf6 {[%clk 0:00:37]}
39. Re8 {[%clk 0:00:07.5]} 39... Qxf3+ {[%clk 0:00:36.2]} 0-1

[Event "*** Titled Tuesday Blitz"]
[Site "Chess.com"]
[Date "2020.04.14"]
[Round "5"]
[White "shyam"]
[Black "Bambi2006"]
[Result "1-0"]
[WhiteElo "2633"]
[BlackElo "2431"]
[TimeControl "180+1"]
[EndTime "10:50:57 PDT"]
[Termination "shyam won by resignation"]

1. e4 {[%clk 0:03:00.9]} 1... c5 {[%clk 0:02:58.4]} 2. Nf3 {[%clk 0:03:00.8]}
2... Nc6 {[%clk 0:02:57]} 3. d4 {[%clk 0:03:00.4]} 3... cxd4 {[%clk 0:02:57.2]}
4. Nxd4 {[%clk 0:03:01.3]} 4... Nf6 {[%clk 0:02:57.1]} 5. Nc3 {[%clk 0:03:01.6]}
5... e5 {[%clk 0:02:56.6]} 6. Nde2 {[%clk 0:03:01.7]} 6... d6 {[%clk 0:02:47.9]}
7. Ng3 {[%clk 0:03:00.6]} 7... Be6 {[%clk 0:02:30.8]} 8. Bg5 {[%clk 0:02:43.6]}
8... Be7 {[%clk 0:02:27.4]} 9. Bxf6 {[%clk 0:02:40]} 9... Bxf6 {[%clk
0:02:24.7]} 10. Nd5 {[%clk 0:02:40.4]} 10... O-O {[%clk 0:02:22]} 11. c3 {[%clk
0:02:36.6]} 11... Bg5 {[%clk 0:02:17.7]} 12. Bc4 {[%clk 0:02:35.6]} 12... g6
{[%clk 0:02:08.5]} 13. O-O {[%clk 0:02:32.3]} 13... Kg7 {[%clk 0:02:05.3]} 14.
Qe2 {[%clk 0:02:17.3]} 14... f5 {[%clk 0:01:59.4]} 15. exf5 {[%clk 0:02:01.5]}
15... gxf5 {[%clk 0:01:55.5]} 16. f4 {[%clk 0:02:00]} 16... Bxd5 {[%clk
0:01:55]} 17. Bxd5 {[%clk 0:01:59.1]} 17... exf4 {[%clk 0:01:53.9]} 18. Nh5+
{[%clk 0:01:58.2]} 18... Kh8 {[%clk 0:01:50.5]} 19. Nxf4 {[%clk 0:01:57.9]}
19... Qb6+ {[%clk 0:01:47.3]} 20. Kh1 {[%clk 0:01:57]} 20... Rae8 {[%clk
0:01:45.3]} 21. Qc2 {[%clk 0:01:36.4]} 21... Bxf4 {[%clk 0:01:38.6]} 22. Rxf4
{[%clk 0:01:36.3]} 22... Qe3 {[%clk 0:01:38.3]} 23. Qf2 {[%clk 0:01:29]} 23...
Qxf2 {[%clk 0:01:33.6]} 24. Rxf2 {[%clk 0:01:29.9]} 24... Kg7 {[%clk 0:01:28]}
25. g3 {[%clk 0:01:25.5]} 25... a5 {[%clk 0:01:20.3]} 26. Rd1 {[%clk 0:01:25.4]}
26... Rf6 {[%clk 0:01:17.2]} 27. a4 {[%clk 0:01:23.3]} 27... Re7 {[%clk
0:01:12.7]} 28. Kg2 {[%clk 0:01:02.1]} 28... Re5 {[%clk 0:01:04.9]} 29. Rfd2
{[%clk 0:00:58]} 29... f4 {[%clk 0:01:01.8]} 30. Bf3 {[%clk 0:00:51]} 30... fxg3
{[%clk 0:00:58.2]} 31. hxg3 {[%clk 0:00:51.9]} 31... Re3 {[%clk 0:00:54.5]} 32.
Bxc6 {[%clk 0:00:37.6]} 32... bxc6 {[%clk 0:00:53.4]} 33. Rxd6 {[%clk
0:00:38.5]} 33... Re2+ {[%clk 0:00:45.5]} 34. Kh3 {[%clk 0:00:38.9]} 34... Rxb2
{[%clk 0:00:39.6]} 35. Rxf6 {[%clk 0:00:37.6]} 35... Kxf6 {[%clk 0:00:40.5]} 36.
Rd6+ {[%clk 0:00:37.7]} 36... Kg7 {[%clk 0:00:31.8]} 37. Rxc6 {[%clk 0:00:38.6]}
37... Ra2 {[%clk 0:00:31.8]} 38. Rc4 {[%clk 0:00:37.7]} 38... Ra3 {[%clk
0:00:31.9]} 39. Kg4 {[%clk 0:00:36.7]} 39... Kg6 {[%clk 0:00:31.7]} 40. Kf4
{[%clk 0:00:36.7]} 40... Ra1 {[%clk 0:00:31.5]} 41. Ke5 {[%clk 0:00:36.2]} 41...
Re1+ {[%clk 0:00:31.2]} 42. Kd6 {[%clk 0:00:30.3]} 42... Re3 {[%clk 0:00:31.3]}
43. g4 {[%clk 0:00:28.6]} 43... Kg5 {[%clk 0:00:25.2]} 44. Kc5 {[%clk
0:00:28.2]} 44... Rg3 {[%clk 0:00:24.6]} 45. Kb5 {[%clk 0:00:28.6]} 45... Rxg4
{[%clk 0:00:24.9]} 46. Rxg4+ {[%clk 0:00:29.5]} 46... Kxg4 {[%clk 0:00:25.1]}
47. c4 {[%clk 0:00:30.4]} 47... h5 {[%clk 0:00:25.4]} 48. c5 {[%clk 0:00:31.1]}
48... h4 {[%clk 0:00:22.5]} 49. c6 {[%clk 0:00:31.6]} 49... h3 {[%clk
0:00:22.9]} 50. c7 {[%clk 0:00:32.2]} 50... h2 {[%clk 0:00:23.4]} 51. c8=Q+
{[%clk 0:00:33.1]} 51... Kg3 {[%clk 0:00:21.4]} 52. Qc6 {[%clk 0:00:32.4]} 1-0

[Event "*** Titled Tuesday Blitz"]
[Site "Chess.com"]
[Date "2020.04.14"]
[Round "5"]
[White "LogoCzar"]
[Black "mshuaau0"]
[Result "1-0"]
[WhiteElo "2440"]
[BlackElo "2223"]
[TimeControl "180+1"]
[EndTime "10:50:57 PDT"]
[Termination "LogoCzar won by resignation"]

1. e4 {[%clk 0:03:00.9]} 1... e5 {[%clk 0:02:59.6]} 2. Nf3 {[%clk 0:03:00.1]}
2... Nc6 {[%clk 0:02:59.4]} 3. Bb5 {[%clk 0:03:00.2]} 3... a6 {[%clk 0:02:59.1]}
4. Ba4 {[%clk 0:03:00.6]} 4... Nf6 {[%clk 0:02:59]} 5. O-O {[%clk 0:03:00.8]}
5... Be7 {[%clk 0:02:58.4]} 6. Re1 {[%clk 0:03:01.2]} 6... b6 {[%clk 0:02:57.9]}
7. Bxc6 {[%clk 0:02:59.8]} 7... dxc6 {[%clk 0:02:56.9]} 8. Nxe5 {[%clk
0:03:00.2]} 8... Bb7 {[%clk 0:02:55.9]} 9. d4 {[%clk 0:02:55.7]} 9... O-O {[%clk
0:02:46.3]} 10. Nc3 {[%clk 0:02:48.9]} 10... c5 {[%clk 0:02:46.1]} 11. d5 {[%clk
0:02:46.7]} 11... Re8 {[%clk 0:02:39.6]} 12. a4 {[%clk 0:02:46.1]} 12... Bf8
{[%clk 0:02:31]} 13. f4 {[%clk 0:02:44.8]} 13... b5 {[%clk 0:02:15.8]} 14. axb5
{[%clk 0:02:42.2]} 14... axb5 {[%clk 0:02:14.5]} 15. Rxa8 {[%clk 0:02:40.6]}
15... Bxa8 {[%clk 0:02:14.3]} 16. Nxb5 {[%clk 0:02:34.2]} 16... Nxe4 {[%clk
0:02:13.7]} 17. Rxe4 {[%clk 0:02:29.1]} 17... f6 {[%clk 0:02:13.9]} 18. Nc3
{[%clk 0:02:12.7]} 18... fxe5 {[%clk 0:02:00.4]} 19. fxe5 {[%clk 0:02:12.5]}
19... Bb7 {[%clk 0:01:50.1]} 20. e6 {[%clk 0:02:05.9]} 20... Bd6 {[%clk
0:01:46.5]} 21. Qh5 {[%clk 0:01:55]} 21... g6 {[%clk 0:01:33.6]} 22. Qg4 {[%clk
0:01:46.6]} 22... Qf6 {[%clk 0:01:28.2]} 23. Bg5 {[%clk 0:01:41.7]} 23... Qf5
{[%clk 0:01:28.3]} 24. Qxf5 {[%clk 0:01:34.6]} 24... gxf5 {[%clk 0:01:29.2]} 25.
Re1 {[%clk 0:01:29.6]} 25... c6 {[%clk 0:01:29.5]} 26. dxc6 {[%clk 0:01:23.9]}
26... Bxc6 {[%clk 0:01:30.4]} 27. g3 {[%clk 0:01:09.6]} 27... Kg7 {[%clk
0:01:30.3]} 28. Bf4 {[%clk 0:01:04.4]} 28... Bxf4 {[%clk 0:01:28.3]} 29. gxf4
{[%clk 0:01:05.3]} 29... Kf6 {[%clk 0:01:28.2]} 30. Kf2 {[%clk 0:01:03.9]} 30...
Rxe6 {[%clk 0:01:22.9]} 31. Rxe6+ {[%clk 0:01:03.3]} 31... Kxe6 {[%clk
0:01:23.8]} 32. Ke3 {[%clk 0:01:02.4]} 32... Kd6 {[%clk 0:01:19]} 33. Ne2 {[%clk
0:00:58.6]} 33... Be4 {[%clk 0:01:17.4]} 34. c3 {[%clk 0:00:56.2]} 34... Kd5
{[%clk 0:01:05.1]} 35. Ng3 {[%clk 0:00:47.5]} 35... Bb1 {[%clk 0:01:05.2]} 36.
Nh5 {[%clk 0:00:41.5]} 36... Ke6 {[%clk 0:01:04.8]} 37. b4 {[%clk 0:00:37]}
37... cxb4 {[%clk 0:00:55.1]} 38. cxb4 {[%clk 0:00:37.9]} 38... Kd5 {[%clk
0:00:55.4]} 39. Nf6+ {[%clk 0:00:37.4]} 39... Kc4 {[%clk 0:00:55.8]} 40. Nxh7
{[%clk 0:00:37.5]} 40... Kxb4 {[%clk 0:00:56.3]} 41. Kd4 {[%clk 0:00:37.9]}
41... Kb5 {[%clk 0:00:56.5]} 42. Ke5 {[%clk 0:00:38]} 42... Kc6 {[%clk
0:00:56.2]} 43. Nf8 {[%clk 0:00:36.7]} 43... Kc7 {[%clk 0:00:55.1]} 44. Ne6+
{[%clk 0:00:36.2]} 44... Kd7 {[%clk 0:00:55.4]} 45. Nd4 {[%clk 0:00:36.5]} 45...
Ke7 {[%clk 0:00:54.4]} 46. Nxf5+ {[%clk 0:00:36.6]} 46... Kf7 {[%clk 0:00:54.6]}
47. Ng3 {[%clk 0:00:35.8]} 47... Bc2 {[%clk 0:00:54.3]} 48. f5 {[%clk
0:00:34.4]} 48... Bb1 {[%clk 0:00:53.8]} 49. Kf4 {[%clk 0:00:33.4]} 49... Kf6
{[%clk 0:00:53.3]} 50. Nh5+ {[%clk 0:00:32.6]} 50... Kf7 {[%clk 0:00:52.5]} 51.
Kg5 {[%clk 0:00:32.8]} 51... Bc2 {[%clk 0:00:52.5]} 52. h4 {[%clk 0:00:31.4]}
52... Bb1 {[%clk 0:00:52.6]} 53. Nf4 {[%clk 0:00:31.2]} 53... Bc2 {[%clk
0:00:52]} 54. h5 {[%clk 0:00:31.4]} 54... Bb1 {[%clk 0:00:50.5]} 55. h6 {[%clk
0:00:30.1]} 55... Bc2 {[%clk 0:00:50.7]} 56. Ng6 {[%clk 0:00:28.4]} 56... Bb1
{[%clk 0:00:48.9]} 57. h7 {[%clk 0:00:25.5]} 1-0

[Event "*** Titled Tuesday Blitz"]
[Site "Chess.com"]
[Date "2020.04.14"]
[Round "5"]
[White "NDePinEsPeRG"]
[Black "Morshynska"]
[Result "1-0"]
[WhiteElo "2891"]
[BlackElo "2073"]
[TimeControl "180+1"]
[EndTime "10:50:57 PDT"]
[Termination "NDePinEsPeRG won by resignation"]

1. e4 {[%clk 0:02:24.4]} 1... e5 {[%clk 0:02:56.9]} 2. Nf3 {[%clk 0:02:24.5]}
2... Nc6 {[%clk 0:02:56.4]} 3. Bb5 {[%clk 0:02:25]} 3... a6 {[%clk 0:02:56.1]}
4. Ba4 {[%clk 0:02:25.2]} 4... Nf6 {[%clk 0:02:55.4]} 5. d3 {[%clk 0:02:24.2]}
5... d6 {[%clk 0:02:54.7]} 6. c3 {[%clk 0:02:23.8]} 6... Bd7 {[%clk 0:02:54.3]}
7. Nbd2 {[%clk 0:02:23.5]} 7... g6 {[%clk 0:02:52.2]} 8. Nf1 {[%clk 0:02:22.8]}
8... Bg7 {[%clk 0:02:51.7]} 9. Bg5 {[%clk 0:02:23.4]} 9... h6 {[%clk 0:02:51.2]}
10. Bh4 {[%clk 0:02:22.7]} 10... O-O {[%clk 0:02:44.8]} 11. Ne3 {[%clk
0:02:22.1]} 11... Qe8 {[%clk 0:02:41.2]} 12. O-O {[%clk 0:02:18.3]} 12... Nd4
{[%clk 0:01:53.6]} 13. Bxd7 {[%clk 0:02:15.8]} 13... Nxf3+ {[%clk 0:01:52.5]}
14. Qxf3 {[%clk 0:02:15]} 14... Nxd7 {[%clk 0:01:49.7]} 15. Nd5 {[%clk
0:02:14.5]} 15... g5 {[%clk 0:01:37.3]} 16. Bg3 {[%clk 0:02:08.1]} 16... Rc8
{[%clk 0:01:29.4]} 17. Ne3 {[%clk 0:02:07.5]} 17... Nc5 {[%clk 0:01:18]} 18. Nf5
{[%clk 0:02:06.5]} 18... Ne6 {[%clk 0:01:04.7]} 19. h4 {[%clk 0:02:05.5]} 19...
f6 {[%clk 0:01:00.2]} 20. Qe2 {[%clk 0:02:00.9]} 20... Kh7 {[%clk 0:00:51.4]}
21. d4 {[%clk 0:01:58.2]} 21... Bh8 {[%clk 0:00:49.1]} 22. Rfe1 {[%clk
0:01:45.5]} 22... Ng7 {[%clk 0:00:47.2]} 23. Qf3 {[%clk 0:01:44.4]} 23... Nxf5
{[%clk 0:00:37.2]} 24. Qxf5+ {[%clk 0:01:42.7]} 24... Qg6 {[%clk 0:00:36.6]} 25.
Qd7+ {[%clk 0:01:36.6]} 25... Qf7 {[%clk 0:00:33.8]} 26. Qh3 {[%clk 0:01:35]}
26... Rce8 {[%clk 0:00:21.6]} 27. f3 {[%clk 0:01:26.2]} 27... Qg6 {[%clk
0:00:18.1]} 28. Bf2 {[%clk 0:01:21.4]} 28... f5 {[%clk 0:00:15.4]} 29. exf5
{[%clk 0:01:19.3]} 29... Qxf5 {[%clk 0:00:14.5]} 30. Qxf5+ {[%clk 0:01:18.6]}
30... Rxf5 {[%clk 0:00:15.4]} 31. Re2 {[%clk 0:01:18.2]} 31... Rff8 {[%clk
0:00:12.3]} 32. hxg5 {[%clk 0:01:17.5]} 32... hxg5 {[%clk 0:00:13.2]} 33. d5
{[%clk 0:01:17]} 33... Kg6 {[%clk 0:00:12.8]} 34. Rae1 {[%clk 0:01:14.1]} 34...
Rf7 {[%clk 0:00:13]} 35. Re4 {[%clk 0:01:13.6]} 35... Rg8 {[%clk 0:00:12.8]} 36.
a4 {[%clk 0:01:11.2]} 36... Bf6 {[%clk 0:00:13.7]} 37. a5 {[%clk 0:01:08.8]}
37... Bh8 {[%clk 0:00:14.6]} 38. Rb4 {[%clk 0:01:07.5]} 38... Rb8 {[%clk
0:00:14]} 39. Ba7 {[%clk 0:01:06.1]} 39... Rg8 {[%clk 0:00:12.6]} 40. Rxb7
{[%clk 0:01:05.1]} 40... e4 {[%clk 0:00:12.3]} 41. Rxe4 {[%clk 0:01:03.8]} 41...
Be5 {[%clk 0:00:13.2]} 42. Bd4 {[%clk 0:01:02.3]} 42... Bxd4+ {[%clk 0:00:12]}
43. Rxd4 {[%clk 0:01:01.4]} 43... Re8 {[%clk 0:00:11.8]} 44. Kf2 {[%clk
0:01:00]} 44... Re5 {[%clk 0:00:11.6]} 45. Ra7 {[%clk 0:00:56.6]} 45... c6
{[%clk 0:00:09.9]} 46. Rxf7 {[%clk 0:00:55.3]} 46... Kxf7 {[%clk 0:00:10]} 47.
dxc6 {[%clk 0:00:55.4]} 47... Rxa5 {[%clk 0:00:06.6]} 48. Rxd6 {[%clk
0:00:54.8]} 48... Rc5 {[%clk 0:00:06]} 49. Ke3 {[%clk 0:00:54.1]} 49... a5
{[%clk 0:00:05.9]} 50. Kd4 {[%clk 0:00:53.5]} 1-0